Cogmind - Beta 10.1 @@@ ROGUE MODE // 2020.10.22 @ 15:42:07 Player: Demise Result: Destroyed by D-53 Grenadier with Mini Grenade Launcher Performance ------------- Evolutions (0) 0 Regions Visited (2) 400 Robots Destroyed (27) 135 Value Destroyed (407) 407 Prototype IDs (2) 40 Alien Tech Used (0) 0 Bonus (0) 0 TOTAL SCORE: 982 Bonus ------- None Cogmind --------- Core Integrity 0/250 Matter 300/300 Energy 100/100 System Corruption 1% Temperature Cool (0) Movement Core (50) Location -10/Mines Parts ------- > --- POWER (1) -------- (None) > --- PROPULSION (2) --- (None) > --- UTILITY (2) ------ (None) > --- WEAPON (2) ------- (None) > --- INVENTORY (4) ---- Light Nuclear Core Medium Storage Unit High-capacity Matter Pod (200) Datajack Peak State ------------ > --- POWER ------------ Light Nuclear Core > --- PROPULSION ------- Light Treads Flight Unit > --- UTILITY ---------- Large Storage Unit High-capacity Storage Unit > --- WEAPON ----------- EM Shotgun EM Shotgun > --- INVENTORY -------- Ion Engine Medium Storage Unit Large Storage Unit High-capacity Matter Pod Improved Terrain Scanner Seismic Analyzer Hacking Suite EM Shotgun Assault Rifle Light Assault Rifle Light Assault Rifle Light Cannon Datajack Mining Laser Plasma Cutter Plasma Cutter [Rating: 13] Favorites ----------- Power Light Nuclear Core Engine Light Ion Engine Power Core Light Nuclear Core Propulsion Light Treads Treads Light Treads Leg Aluminum Leg Flight Unit Flight Unit Utility Small Storage Unit Device Improved Terrain Scanner Storage Small Storage Unit Weapon EM Shotgun Energy Gun EM Shotgun Energy Cannon Beam Cannon Ballistic Gun Assault Rifle Build | -11 -10 -10 ------- Run | Scr Mat Min Slots Evolved . | . . . Power . | . . . Propulsion . | . . . Utility . | . . . Weapon . | . . . Parts Attached 13 | 3 8 2 Power 2 | . 1 1 Engine 1 | . . 1 Core 1 | . 1 . Reactor . | . . . Propulsion 3 | 2 . 1 Treads 2 | 2 . . Leg . | . . . Wheel . | . . . Hover . | . . . Flight 1 | . . 1 Utility 5 | 1 4 . Device 1 | 1 . . Storage 4 | . 4 . Processor . | . . . Hackware . | . . . Protection . | . . . Artifact . | . . . Weapon 3 | . 3 . Energy Gun 2 | . 2 . Energy Cannon 1 | . 1 . Ballistic Gun . | . . . Ballistic Cannon . | . . . Launcher . | . . . Special Weapon . | . . . Impact Weapon . | . . . Slashing Weapon . | . . . Piercing Weapon . | . . . Special Melee Weapon . | . . . Unidentified Prototypes . | . . . Parts Lost 7 | . 2 5 Power 1 | . . 1 Propulsion 3 | . 1 2 Utility . | . . . Weapon 3 | . 1 2 Highest Loss Streak 5 | . 2 5 Average Slot Usage (%) 92 | . 96 84 Engine 1 | . 1 3 Core 12 | . 12 10 Treads 21 | . 24 13 Flight 1 | . . 3 Device 2 | . 3 . Storage 25 | . 24 27 Energy Gun 18 | . 15 26 Ballistic Gun 8 | . 11 . Naked Turns 7 | . . 7 Heaviest Build 59 | 12 59 59 Greatest Support 40 | 40 40 20 Greatest Overweight (x) 15 | . 2 15 Average Overweight (x) . | . . 1 Largest Inventory Capacity 18 | 6 18 18 Average Capacity 12 | 6 11 17 Most Carried 17 | 6 14 17 Average Carried 10 | 5 9 14 Final Capacity 18 | 6 18 4 Final Carried 14 | 6 14 4 Class Distribution -------------------- 100% | Mutant Dominant Class ---------------- Mutant | -10/Materials Mutant | -10/Mines Resources | -11 -10 -10 ----------- Run | Scr Mat Min Matter Collected 673 | 275 358 40 Remotely . | . . . Salvage Created 789 | 211 420 158 Parts 55 | 18 28 9 Haulers Intercepted . | . . . Recyclers Shooed 1 | . 1 . Parts Field Recycled . | . . . Retrieved Matter . | . . . Parts Self-Destructed . | . . . Prevented . | . . . Kills | -11 -10 -10 ------- Run | Scr Mat Min Combat Hostiles Destroyed 15 | . 9 6 Guns 12 | . 8 4 Cannons 1 | . 1 . AOE 2 | . . 2 Classes Destroyed 7 | 3 4 . Worker 2 | 2 . . Tunneler 5 | 5 . . Recycler 3 | 1 1 1 Operator 1 | . 1 . Watcher 1 | . 1 . Swarmer 9 | . 3 6 Grunt 6 | . 6 . Best Kill Streak 5 | 4 5 3 Combat Bots Only 5 | . 5 3 Max Kills in Single Turn 3 | 2 1 3 Gunslinging . | . . . Exploded 2 | . . 2 Melee . | . . . Uniques/NPCs Destroyed . | . . . Combat | -11 -10 -10 -------- Run | Scr Mat Min Damage Taken 885 | . 493 392 Core 250 | . 103 147 Absorbed by Shields . | . . . Core Remaining (%) 100 | 100 . . Volleys Fired 62 | 15 38 9 Largest 2 | 2 2 2 Hottest 90 | 60 80 90 Shots Fired 121 | 30 73 18 Gun 119 | 30 71 18 Cannon 2 | . 2 . Launcher . | . . . Special . | . . . Kinetic 51 | 15 36 . Thermal 2 | . 2 . Explosive . | . . . Electromagnetic 68 | 15 35 18 Robot Hit Streak 8 | 8 8 3 Robot Miss Streak 6 | 2 3 6 Penetration Max . | . . . Secondary Targets 2 | . 2 . Max Gunslinging Chain 1 | . 1 . Shots Hit Robots 76 | 20 45 11 Core Hits 40 | 9 20 11 Critical Hits . | . . . Critical Kills . | . . . Critical Parts Destroyed . | . . . Melee Attacks . | . . . Impact . | . . . Slashing . | . . . Piercing . | . . . Sneak Attacks . | . . . Combat Hostiles . | . . . Follow-up Attacks . | . . . Damage Inflicted 1207 | 332 669 206 Guns 986 | 269 570 147 Cannons 17 | . 17 . Explosions 204 | 63 82 59 Melee . | . . . Ramming . | . . . Kinetic 340 | 108 232 . Thermal 221 | 63 99 59 Explosive . | . . . Electromagnetic 646 | 161 338 147 Impact . | . . . Slashing . | . . . Piercing . | . . . Highest Corruption 1 | . 1 1 Average Corruption 1 | . 1 1 Corruption Purged . | . . . Effects 3 | . 1 2 Message Errors 3 | . 1 2 Overload Shots . | . . . Overflow Damage . | . . . Projectiles . | . . . Explosions . | . . . Melee . | . . . Knockbacks . | . . . Impact . | . . . Kinetic . | . . . Secondary . | . . . Self-Inflicted Damage 33 | . . 33 Shots 1 | . . 1 Rammed . | . . . Targets Rammed . | . . . Kicked . | . . . Crushed . | . . . Highest Temperature 111 | . 111 85 Average Temperature 34 | . 33 36 Received Heat Transfer 216 | . 216 . Siege Activations . | . . . Robots Corrupted . | . . . Combat Hostiles . | . . . Parts Fried . | . . . Impact Corruptions . | . . . Robots Melted . | . . . Combat Hostiles . | . . . Parts Melted . | . . . Heat Transferred 237 | . 187 50 Parts Sabotaged . | . . . Parts Stolen . | . . . Parts Stripped . | . . . Power Chain Reactions 4 | 1 2 1 Missiles Intercepted . | . . . Alert | -11 -10 -10 ------- Run | Scr Mat Min Peak Influence 164 | 40 164 160 Initial 26 | . 26 . Average 85 | 21 72 144 Maximum Alert Level . | . . . Low Security (%) 100 | 100 100 100 Level 1 . | . . . Level 2 . | . . . Level 3 . | . . . Level 4 . | . . . Level 5 . | . . . High Security . | . . . Max Security . | . . . Squads Dispatched 2 | . 2 . Investigation . | . . . Extermination . | . . . Reinforcement 2 | . 2 . Assault . | . . . Garrison . | . . . Intercept . | . . . Construction Impeded . | . . . Haulers Reinforced . | . . . Stealth | -11 -10 -10 --------- Run | Scr Mat Min Distress Signals 1 | . . 1 Communications Jammed . | . . . Distress Signals . | . . . Times Spotted 30 | . 16 14 Peak Tracking Total 5 | . 3 5 Tactical Retreats . | . . . Traps | -11 -10 -10 ------- Run | Scr Mat Min Traps Triggered 1 | . 1 . Indirectly . | . . . Trap Hack Attempts . | . . . Triggered . | . . . Disarmed . | . . . Reprogrammed . | . . . Reused . | . . . Traps Extracted . | . . . Installed . | . . . Triggered . | . . . Machines | -11 -10 -10 ---------- Run | Scr Mat Min Machines Disabled . | . . . Max in Single Turn . | . . . Machines Sabotaged . | . . . Garrisons Compromised . | . . . Overloaded Fab Kills . | . . . Fab Network Shutdowns . | . . . Hacking | -11 -10 -10 --------- Run | Scr Mat Min Machines Accessed 4 | . 4 . Terminals 4 | . 4 . Fabricators . | . . . Repair Stations . | . . . Recycling Units . | . . . Scanalyzers . | . . . Garrison Access . | . . . Total Hacks 14 | . 14 . Successful 8 | . 8 . Failed 6 | . 6 . Catastrophic 1 | . 1 . Database Lockouts . | . . . Manual 11 | . 11 . Terminals 14 | . 14 . Fabricators . | . . . Repair Stations . | . . . Recycling Units . | . . . Scanalyzers . | . . . Garrison Access . | . . . Terminal Hacks 3 | . 3 . Prototype ID Bank 1 | . 1 . Locate Traps 1 | . 1 . Zone Layout 1 | . 1 . Fabricator Hacks . | . . . Repair Station Hacks . | . . . Recycling Unit Hacks . | . . . Scanalyzer . | . . . Garrison Access Hacks . | . . . Unauthorized Hacks 5 | . 5 . Terminals 5 | . 5 . Botnet 4 | . 4 . Operators 1 | . 1 . Fabricators . | . . . Repair Stations . | . . . Recycling Units . | . . . Scanalyzers . | . . . Garrison Access . | . . . Data Cores Recovered 1 | . 1 . Used . | . . . Hacking Detections 4 | . 4 . Full Trace Events . | . . . Feedback Events . | . . . Feedback Blocked . | . . . Robot Schematics Acquired . | . . . Robots Built . | . . . Matter . | . . . Time . | . . . Total Robot Build Rating . | . . . Part Schematics Acquired . | . . . Parts Built . | . . . Matter . | . . . Time . | . . . Total Part Build Rating . | . . . Parts Repaired . | . . . Time . | . . . Parts Recycled . | . . . Recycled Matter . | . . . Retrieved Matter . | . . . Retrieved Components . | . . . Parts Scanalyzed . | . . . Part Schematics Acquired . | . . . Parts Damaged . | . . . Bothacking | -11 -10 -10 ------------ Run | Scr Mat Min Used RIF Installer . | . . . Robots Hacked . | . . . Non-combat . | . . . Combat . | . . . Robot Hacks Applied . | . . . Relay Couplers Released . | . . . Robots Rewired . | . . . Allies Hacked . | . . . Hacks Repelled . | . . . Allies | -11 -10 -10 -------- Run | Scr Mat Min Total Allies . | . . . Largest Group . | . . . Highest-Rated Group . | . . . Highest-Rated Ally . | . . . Total Orders . | . . . Ally Attacks . | . . . Total Damage . | . . . Kills . | . . . Allies Corrupted . | . . . Allies Melted . | . . . Intel | -11 -10 -10 ------- Run | Scr Mat Min Robot Analysis Total . | . . . Derelict Logs Recovered . | . . . Drone Launches . | . . . Drone Recoveries . | . . . Exploration | -11 -10 -10 ------------- Run | Scr Mat Min Turns Passed 1300 | 143 809 348 Spaces Moved 596 | 56 385 155 Core 10 | . . 10 Treads 579 | 49 385 145 Legs 7 | 7 . . Wheels . | . . . Hover . | . . . Flight . | . . . Fastest Speed 50 | 120 160 50 Average Speed 176 | 155 171 195 Slowest Speed 800 | 160 200 800 Overloaded Moves . | . . . Propulsion Burnouts . | . . . Robots Hopped . | . . . Cave-ins Triggered . | . . . Exploration Rate (%) 35 | 3 81 21 Regions Visited 2 Branch Regions 1 Pre-discovered Areas . | . . . Known Exits Taken . | . . . Unknown Exits Taken 2 | 1 1 . Scrap Searched . | . . . Spaces Dug . | . . . Terrain Destroyed 17 | 4 8 5 Melee . | . . . Projectile . | . . . AOE 17 | 4 8 5 Terrain Rammed . | . . . Walls Destroyed . | . . . Machines Disabled . | . . . Actions | -11 -10 -10 --------- Run | Scr Mat Min Total 732 | 84 465 183 Wait 26 | 3 11 12 Move 594 | 55 384 155 Hop . | . . . Pick Up 18 | 4 12 2 Fast Attach 7 | 1 4 2 Attach 3 | 2 1 . Detach 3 | . 2 1 Swap 3 | . 3 . Drop 16 | 4 10 2 Fire 62 | 15 38 9 Melee . | . . . Ram . | . . . Kick . | . . . Crush . | . . . Escape Stasis . | . . . Rewire . | . . . Trap . | . . . Miscellaneous . | . . . Route ------- -11/Scrapyard -10/Materials (discovered 4 exits: [*Mat x3] / [*Min]) -10/Mines (discovered 1 exit: [*Mat]) History --------- Turn | Location | Event 16 | -11/Scrapyard | Discovered new exit (range 2) 144 | -11/Scrapyard | Entered Materials 319 | -10/Materials | Build established: Mutant 370 | -10/Materials | Discovered new exit (range 8) 539 | -10/Materials | Discovered new exit (range 8) 869 | -10/Materials | Discovered new exit (range 9) 927 | -10/Materials | Discovered new exit (range 12) 953 | -10/Materials | Entered Mines 1019 | -10/Mines | Discovered new exit (range 14) 1249 | -10/Mines | Assembled infested the area 1254 | -10/Mines | Assisted by a Guerilla fighting off Assembled 1291 | -10/Mines | Core integrity fell below 50% 1297 | -10/Mines | Core integrity fell below 20% 1301 | -10/Mines | Destroyed by D-53 Grenadier with Mini Grenade Launcher Last Messages --------------- they're closing on this area, come on!" 01254_ K-01 Serf collects debris. 01274_ FTCW AZJE9B/#C4VPOTGPCGCIHHILR|IMJ33E 01275_ K-01 Serf destroyed. 01281_ as-99795 destroyed. 01281_ R-06 Scavenger destroyed. 01281_ as-97294 destroyed. 01284_ EM Shotgun destroyed. 01284_ Flight Unit destroyed. 01284_ Lgt. Ion Engine destroyed. 01284_ Lgt. Treads destroyed. 01284_ EM Shotgun destroyed. 01284_ as-74046 destroyed. 01284_ as-73318 destroyed. 01290_ as-90844 destroyed. 01290_ as-76948 destroyed. 01293_ Dropped Lrg. Storage Unit. 01294_ The unstable cave ceiling collapses. 01294_ Dropped Hcp. Storage Unit. 01296_ The unstable cave ceiling collapses. Map ----- +----------------------------------------------------+ | | | | | | | | | | | | | | | | | | | | | | | | | | | | | | | | | ??????????????????????????## ####????????????? | | ?????????????????????????## #????????????? | | ???????????#####????????## #????????????? | | ??????????## ##???##### [ #????????????? | | ?????????## ##### # !! #????????????? | | ?????????# ## |]!|[ #????????????? | | ????????## !*a #????????????? | | ????????# % a !# # ????????? | | ??#####?# # % ??????? | | ?##"""### % ## = d@ ## ?????? | | ?# = % ### ##?????#????? | | ?# !%= #?### d #???????????? | | ?# "#!# ##???# % #???????????? | | ?# ##### ####????# = * ##???????????? | | ?# #???####???????## % ###????????????? | | ?# #???????????????## ###??????????????? | | ?# #????????????????####### #????????????????? | | ?# #??????????????????????# ????????????????? | | ?# #???????????????????????####???????????????? | | ?# ##?????????????????????????????????????????? | | ?# ##????????????????????????????????????????? | | ?# #????????#####???????????????????????????? | | ?# ########## ##??????????????????????????? | | ?# #??????????????????????????? | | ?# < #??????????????????????????? | | ?# #### #### ##??????????????????????????? | | ?# #??# #?# #???????????????????????????? | | ?# ##?# #?# #???????????????????????????? | | ?## ### #?## ##???????????????????????????? | | ??# ## ########????????????????????????????? | | ??## ## #?????????????????????????????????? | | ??## ### #?????????????????????????????????? | | ??# #?????????????????????????????????? | | ??# ####?????????????????????????????????? | +----------------------------------------------------+ Best States ------------- Heat Dissipation 25 Energy Generation 14 Energy Capacity 160 Matter Stores 300 Matter Capacity 300 Sight Range 16 Terrain Scan Range 16 Terrain Scan Density 10 Evasion (%) 40 Recoil Reduction 2 Item Schematics ----------------- None Robot Schematics ------------------ None Fabricated ------------ Nothing Alien Tech Used ----------------- None Achievements -------------- None Challenges ------------ None Game ------ Seed WardroneWardroneLoader Manual? 0 Play Time 00:13:55 Cumulative 35.2 hours Start 2020.10.22 @ 15:25:23 End 2020.10.22 @ 15:42:07 Sessions 1 Manual Loads 0 Difficulty Rogue Special Mode None Game No. 33 Rogue 33 Adventurer 0 Explorer 0 Win Type - Total 0 Types 0/0/0/0/0/0/0/0/0 Lore% 39 Gallery% 39 Achievement% 48 Wizard Run 0 Options --------- ASCII 0 Keyboard 1 Movement Numpad Keybinds 0 Fullscreen 1 Font 12/Terminus Map View 83x54 Tactical HUD 1 Map Filters NONE Filters NONE Steam 1 RUN: 97880e01-55b0-4f14-8a69-ecef4b3ac2a6